[Event "*** Titled Tuesday Blitz"]
[Site "Chess.com"]
[Date "2021.02.16"]
[Round "6"]
[White "SilviusTiberius"]
[Black "Aslanov_Umid"]
[Result "1-0"]
[WhiteElo "2578"]
[BlackElo "2349"]
[TimeControl "180+1"]
[EndTime "11:07:51 PST"]
[Termination "SilviusTiberius won by resignation"]

1. e4 {[%clk 0:03:00.9]} 1... c5 {[%clk 0:02:59.6]} 2. Nf3 {[%clk 0:03:01.3]}
2... d6 {[%clk 0:02:59.2]} 3. d4 {[%clk 0:03:01.8]} 3... cxd4 {[%clk 0:03:00.1]}
4. Nxd4 {[%clk 0:03:02.4]} 4... Nf6 {[%clk 0:03:00.2]} 5. Nc3 {[%clk 0:03:02.9]}
5... a6 {[%clk 0:03:00.7]} 6. f3 {[%clk 0:03:03.4]} 6... e5 {[%clk 0:03:00.3]}
7. Nb3 {[%clk 0:03:03.9]} 7... Be6 {[%clk 0:03:00.8]} 8. Be3 {[%clk 0:03:02.8]}
8... Be7 {[%clk 0:03:00.5]} 9. Qd2 {[%clk 0:03:01.6]} 9... O-O {[%clk
0:03:00.1]} 10. O-O-O {[%clk 0:03:02]} 10... b5 {[%clk 0:02:58.4]} 11. g4 {[%clk
0:03:00.5]} 11... Nbd7 {[%clk 0:02:58.5]} 12. h4 {[%clk 0:02:51.3]} 12... b4
{[%clk 0:02:55.7]} 13. Nd5 {[%clk 0:02:45.1]} 13... Bxd5 {[%clk 0:02:54.1]} 14.
exd5 {[%clk 0:02:46]} 14... a5 {[%clk 0:02:44.8]} 15. Kb1 {[%clk 0:02:45.5]}
15... Nb6 {[%clk 0:02:40.6]} 16. Bxb6 {[%clk 0:02:35.9]} 16... Qxb6 {[%clk
0:02:41.5]} 17. h5 {[%clk 0:02:36.5]} 17... a4 {[%clk 0:02:39.4]} 18. Nc1 {[%clk
0:02:36]} 18... Nd7 {[%clk 0:02:34.4]} 19. g5 {[%clk 0:02:33.2]} 19... Nc5
{[%clk 0:02:34]} 20. Nd3 {[%clk 0:02:22.2]} 20... b3 {[%clk 0:02:27.1]} 21. cxb3
{[%clk 0:01:58.9]} 21... axb3 {[%clk 0:02:25.1]} 22. a3 {[%clk 0:01:59.2]} 22...
Rac8 {[%clk 0:02:08]} 23. Bh3 {[%clk 0:01:54.7]} 23... Rc7 {[%clk 0:02:03.7]}
24. Nb4 {[%clk 0:01:54.8]} 24... Na6 {[%clk 0:01:49.9]} 25. Nc6 {[%clk
0:01:51.8]} 25... Nb8 {[%clk 0:01:50.1]} 26. Nxe7+ {[%clk 0:01:45.8]} 26... Rxe7
{[%clk 0:01:51]} 27. g6 {[%clk 0:01:46.3]} 27... f5 {[%clk 0:01:35.4]} 28. Qg5
{[%clk 0:01:29.1]} 28... Rc7 {[%clk 0:01:24]} 29. h6 {[%clk 0:01:23.7]} 29...
Qf2 {[%clk 0:00:49.7]} 30. Bxf5 {[%clk 0:01:12]} 30... Rc2 {[%clk 0:00:22.4]}
31. gxh7+ {[%clk 0:01:08.8]} 31... Kf7 {[%clk 0:00:18.7]} 32. Qxg7+ {[%clk
0:01:06.1]} 32... Ke8 {[%clk 0:00:18.9]} 33. Qxf8+ {[%clk 0:01:01.5]} 33... Kxf8
{[%clk 0:00:18]} 34. h8=Q+ {[%clk 0:01:01.4]} 34... Ke7 {[%clk 0:00:18.5]} 35.
Qg7+ {[%clk 0:00:54.3]} 35... Kd8 {[%clk 0:00:18.6]} 36. Qf8+ {[%clk 0:00:51.3]}
36... Kc7 {[%clk 0:00:18]} 37. Rc1 {[%clk 0:00:49.6]} 37... Qxf3 {[%clk
0:00:16.4]} 38. Qe7+ {[%clk 0:00:45.5]} 38... Kb6 {[%clk 0:00:15.9]} 39. Bxc2
{[%clk 0:00:44.3]} 39... bxc2+ {[%clk 0:00:16.8]} 1-0

[Event "*** Titled Tuesday Blitz"]
[Site "Chess.com"]
[Date "2021.02.16"]
[Round "6"]
[White "mary-sanna"]
[Black "Matols"]
[Result "1-0"]
[WhiteElo "2049"]
[BlackElo "2255"]
[TimeControl "180+1"]
[EndTime "11:07:56 PST"]
[Termination "mary-sanna won by resignation"]

1. d4 {[%clk 0:03:00.9]} 1... Nf6 {[%clk 0:02:58.5]} 2. Bf4 {[%clk 0:03:00.1]}
2... e6 {[%clk 0:02:57.5]} 3. e3 {[%clk 0:02:55.8]} 3... c5 {[%clk 0:02:56.8]}
4. c3 {[%clk 0:02:52.8]} 4... d5 {[%clk 0:02:56.3]} 5. Nf3 {[%clk 0:02:50.7]}
5... Nc6 {[%clk 0:02:55.6]} 6. Nbd2 {[%clk 0:02:49.8]} 6... Bd6 {[%clk
0:02:54.6]} 7. Bg3 {[%clk 0:02:48.7]} 7... O-O {[%clk 0:02:54.1]} 8. Bd3 {[%clk
0:02:48.1]} 8... b6 {[%clk 0:02:52.1]} 9. O-O {[%clk 0:02:47.4]} 9... Bb7 {[%clk
0:02:51.8]} 10. Ne5 {[%clk 0:02:45]} 10... Rc8 {[%clk 0:02:36.8]} 11. h4 {[%clk
0:02:27.5]} 11... Bb8 {[%clk 0:02:28.8]} 12. h5 {[%clk 0:02:23.1]} 12... Nxe5
{[%clk 0:02:23.5]} 13. Bxe5 {[%clk 0:02:05.4]} 13... Bxe5 {[%clk 0:02:16.6]} 14.
dxe5 {[%clk 0:02:06.3]} 14... Nd7 {[%clk 0:02:16.7]} 15. f4 {[%clk 0:02:05.7]}
15... f6 {[%clk 0:02:00.8]} 16. exf6 {[%clk 0:01:52.3]} 16... Qxf6 {[%clk
0:01:59.1]} 17. Qg4 {[%clk 0:01:47.5]} 17... Rce8 {[%clk 0:01:56.6]} 18. e4
{[%clk 0:01:40.3]} 18... Rf7 {[%clk 0:01:41.4]} 19. Rae1 {[%clk 0:01:23.2]}
19... e5 {[%clk 0:01:33.1]} 20. exd5 {[%clk 0:01:12.8]} 20... Bxd5 {[%clk
0:01:15.6]} 21. fxe5 {[%clk 0:01:02.4]} 21... Qc6 {[%clk 0:01:03.5]} 22. Rxf7
{[%clk 0:00:45.1]} 22... Bxf7 {[%clk 0:01:02.6]} 23. h6 {[%clk 0:00:21.3]} 23...
Qxh6 {[%clk 0:00:57.6]} 24. Qxd7 {[%clk 0:00:20.9]} 24... Qf4 {[%clk 0:00:44.1]}
25. Nf3 {[%clk 0:00:18.4]} 25... h5 {[%clk 0:00:41.5]} 26. Qf5 {[%clk
0:00:16.1]} 26... Qxf5 {[%clk 0:00:39.2]} 27. Bxf5 {[%clk 0:00:17]} 27... g6
{[%clk 0:00:36.3]} 28. Bh3 {[%clk 0:00:16.1]} 28... Kg7 {[%clk 0:00:35.3]} 29.
Ng5 {[%clk 0:00:15.9]} 29... Bd5 {[%clk 0:00:34.5]} 30. Kf2 {[%clk 0:00:15.4]}
30... Rf8+ {[%clk 0:00:34]} 31. Nf3 {[%clk 0:00:15.3]} 31... g5 {[%clk
0:00:33.4]} 32. g4 {[%clk 0:00:14.6]} 32... hxg4 {[%clk 0:00:32.5]} 33. Bxg4
{[%clk 0:00:15.5]} 33... Kg6 {[%clk 0:00:31.6]} 34. e6 {[%clk 0:00:15.8]} 34...
Kf6 {[%clk 0:00:28.6]} 35. e7 {[%clk 0:00:15.8]} 35... Re8 {[%clk 0:00:28.4]}
36. Bh5 {[%clk 0:00:15.5]} 36... Rd8 {[%clk 0:00:27.8]} 37. exd8=Q+ {[%clk
0:00:14.8]} 1-0

[Event "*** Titled Tuesday Blitz"]
[Site "Chess.com"]
[Date "2021.02.16"]
[Round "6"]
[White "Witik"]
[Black "ZEN-22"]
[Result "1-0"]
[WhiteElo "2778"]
[BlackElo "2494"]
[TimeControl "180+1"]
[EndTime "11:07:57 PST"]
[Termination "Witik won by resignation"]

1. e4 {[%clk 0:03:00.9]} 1... d5 {[%clk 0:02:57]} 2. exd5 {[%clk 0:03:00.6]}
2... c6 {[%clk 0:02:57]} 3. d4 {[%clk 0:02:56.6]} 3... cxd5 {[%clk 0:02:53.1]}
4. Bd3 {[%clk 0:02:54.2]} 4... Nc6 {[%clk 0:02:53.3]} 5. c3 {[%clk 0:02:54.3]}
5... e5 {[%clk 0:02:53.3]} 6. dxe5 {[%clk 0:02:52.6]} 6... Nxe5 {[%clk 0:02:53]}
7. Bb5+ {[%clk 0:02:49.8]} 7... Nc6 {[%clk 0:02:51.4]} 8. Nf3 {[%clk 0:02:49.3]}
8... Bc5 {[%clk 0:02:51.2]} 9. O-O {[%clk 0:02:47.6]} 9... Nf6 {[%clk
0:02:49.7]} 10. Nbd2 {[%clk 0:02:36.2]} 10... O-O {[%clk 0:02:44.5]} 11. Nb3
{[%clk 0:02:36.1]} 11... Bb6 {[%clk 0:02:42.1]} 12. Bg5 {[%clk 0:02:19.2]} 12...
h6 {[%clk 0:02:38]} 13. Bh4 {[%clk 0:02:12]} 13... Bg4 {[%clk 0:02:31.5]} 14. h3
{[%clk 0:02:06.1]} 14... Bh5 {[%clk 0:02:31.1]} 15. Be2 {[%clk 0:01:35.8]} 15...
Re8 {[%clk 0:02:22.3]} 16. Re1 {[%clk 0:01:29.2]} 16... Qd6 {[%clk 0:02:20.3]}
17. Nfd4 {[%clk 0:01:22.8]} 17... Bg6 {[%clk 0:02:11.5]} 18. Bg3 {[%clk
0:00:49]} 18... Qd7 {[%clk 0:02:07.2]} 19. Bf4 {[%clk 0:00:46.4]} 19... Ne4
{[%clk 0:02:02]} 20. Bf1 {[%clk 0:00:40.2]} 20... Rad8 {[%clk 0:01:54.2]} 21.
Be3 {[%clk 0:00:39.7]} 21... Bc7 {[%clk 0:01:51.5]} 22. g3 {[%clk 0:00:34.9]}
22... Ne5 {[%clk 0:01:47.5]} 23. Nd2 {[%clk 0:00:28.8]} 23... a6 {[%clk
0:01:42.7]} 24. Qb3 {[%clk 0:00:24]} 24... Nxd2 {[%clk 0:01:24.3]} 25. Bxd2
{[%clk 0:00:24.1]} 25... Nc4 {[%clk 0:01:24.8]} 26. Bxc4 {[%clk 0:00:19.1]}
26... dxc4 {[%clk 0:01:24.7]} 27. Qxb7 {[%clk 0:00:19.5]} 27... Rxe1+ {[%clk
0:01:17.2]} 28. Rxe1 {[%clk 0:00:19]} 28... Rb8 {[%clk 0:01:17.7]} 29. Qa7
{[%clk 0:00:15.2]} 29... Rxb2 {[%clk 0:01:16.9]} 30. Bf4 {[%clk 0:00:15.1]}
30... Qxh3 {[%clk 0:01:06.3]} 31. Qxc7 {[%clk 0:00:15.3]} 31... Rxa2 {[%clk
0:01:06.5]} 32. Nc6 {[%clk 0:00:09.8]} 32... Bd3 {[%clk 0:00:51]} 33. Qd8+
{[%clk 0:00:08.3]} 33... Kh7 {[%clk 0:00:50.8]} 34. Ne7 {[%clk 0:00:08.7]} 1-0

[Event "*** Titled Tuesday Blitz"]
[Site "Chess.com"]
[Date "2021.02.16"]
[Round "6"]
[White "Ave_Mariia"]
[Black "zurzan"]
[Result "1-0"]
[WhiteElo "2485"]
[BlackElo "2040"]
[TimeControl "180+1"]
[EndTime "11:08:01 PST"]
[Termination "Ave_Mariia won by checkmate"]

1. d4 {[%clk 0:03:00.9]} 1... d6 {[%clk 0:02:59.5]} 2. Nf3 {[%clk 0:02:58.6]}
2... g6 {[%clk 0:02:58.7]} 3. c4 {[%clk 0:02:58.6]} 3... f5 {[%clk 0:02:57.3]}
4. Nc3 {[%clk 0:02:57.8]} 4... Bg7 {[%clk 0:02:57.3]} 5. g3 {[%clk 0:02:56]}
5... Nf6 {[%clk 0:02:57.2]} 6. Bg2 {[%clk 0:02:56.4]} 6... O-O {[%clk
0:02:58.1]} 7. O-O {[%clk 0:02:56.2]} 7... c6 {[%clk 0:02:59]} 8. b3 {[%clk
0:02:51.3]} 8... Na6 {[%clk 0:02:59.9]} 9. Bb2 {[%clk 0:02:51.4]} 9... Qc7
{[%clk 0:03:00]} 10. Qc2 {[%clk 0:02:45.1]} 10... e5 {[%clk 0:02:59.7]} 11. e4
{[%clk 0:02:31.5]} 11... Nb4 {[%clk 0:02:41.9]} 12. Qe2 {[%clk 0:02:15.9]} 12...
fxe4 {[%clk 0:02:36.7]} 13. Nxe4 {[%clk 0:02:16.8]} 13... Nxe4 {[%clk
0:02:27.5]} 14. Qxe4 {[%clk 0:02:17.7]} 14... Bf5 {[%clk 0:02:27.3]} 15. Qe2
{[%clk 0:02:11.1]} 15... Bd3 {[%clk 0:02:23.2]} 16. Qd2 {[%clk 0:02:07.8]} 16...
Bxf1 {[%clk 0:02:20.5]} 17. Rxf1 {[%clk 0:02:06.9]} 17... a5 {[%clk 0:02:05.1]}
18. a3 {[%clk 0:01:56.8]} 18... Na6 {[%clk 0:02:04.5]} 19. Ng5 {[%clk
0:01:53.6]} 19... Rae8 {[%clk 0:01:56.8]} 20. d5 {[%clk 0:01:51.3]} 20... Nc5
{[%clk 0:01:50.6]} 21. b4 {[%clk 0:01:48.6]} 21... axb4 {[%clk 0:01:50.2]} 22.
axb4 {[%clk 0:01:49.5]} 22... h6 {[%clk 0:01:37.9]} 23. bxc5 {[%clk 0:01:43.5]}
23... hxg5 {[%clk 0:01:37.7]} 24. dxc6 {[%clk 0:01:39.7]} 24... bxc6 {[%clk
0:01:37.3]} 25. cxd6 {[%clk 0:01:38.5]} 25... Qd7 {[%clk 0:01:36.2]} 26. c5
{[%clk 0:01:32.1]} 26... e4 {[%clk 0:01:24]} 27. Bxg7 {[%clk 0:01:29.2]} 27...
Kxg7 {[%clk 0:01:24.4]} 28. Qd4+ {[%clk 0:01:25.5]} 28... Kh6 {[%clk 0:01:15]}
29. Bxe4 {[%clk 0:01:25.3]} 29... Qe6 {[%clk 0:00:48.4]} 30. Bxc6 {[%clk
0:01:24]} 30... Rd8 {[%clk 0:00:39.5]} 31. Bg2 {[%clk 0:01:15.5]} 31... Rf5
{[%clk 0:00:32.5]} 32. Rd1 {[%clk 0:01:11.2]} 32... Qf7 {[%clk 0:00:21.4]} 33.
c6 {[%clk 0:01:09.2]} 33... Rf8 {[%clk 0:00:17.3]} 34. Rd2 {[%clk 0:00:59.6]}
34... Ra8 {[%clk 0:00:13.6]} 35. d7 {[%clk 0:00:57.4]} 35... Rd8 {[%clk
0:00:10.3]} 36. c7 {[%clk 0:00:56.1]} 36... Qe7 {[%clk 0:00:07.3]} 37. cxd8=Q
{[%clk 0:00:52.2]} 37... Qxd8 {[%clk 0:00:08.2]} 38. Qe4 {[%clk 0:00:46.7]}
38... Rf7 {[%clk 0:00:05.8]} 39. Qe8 {[%clk 0:00:46.4]} 39... Qf6 {[%clk
0:00:03.2]} 40. d8=Q {[%clk 0:00:44.9]} 40... Qa1+ {[%clk 0:00:02.9]} 41. Rd1
{[%clk 0:00:45]} 41... Qf6 {[%clk 0:00:02.6]} 42. Qxf6 {[%clk 0:00:43.8]} 42...
Rxf6 {[%clk 0:00:03.5]} 43. Qh8# {[%clk 0:00:44.5]} 1-0

[Event "*** Titled Tuesday Blitz"]
[Site "Chess.com"]
[Date "2021.02.16"]
[Round "6"]
[White "Sanyura"]
[Black "oneshot007"]
[Result "0-1"]
[WhiteElo "2718"]
[BlackElo "2521"]
[TimeControl "180+1"]
[EndTime "11:08:03 PST"]
[Termination "oneshot007 won on time"]

1. e4 {[%clk 0:02:54.3]} 1... c5 {[%clk 0:02:59.7]} 2. Nf3 {[%clk 0:02:51.4]}
2... Nc6 {[%clk 0:02:59.9]} 3. d4 {[%clk 0:02:51.7]} 3... cxd4 {[%clk
0:03:00.8]} 4. Nxd4 {[%clk 0:02:52.6]} 4... Nf6 {[%clk 0:03:01.3]} 5. Nc3 {[%clk
0:02:44.5]} 5... e5 {[%clk 0:03:01.2]} 6. Ndb5 {[%clk 0:02:44.5]} 6... d6 {[%clk
0:03:00.7]} 7. Nd5 {[%clk 0:02:44]} 7... Nxd5 {[%clk 0:02:59.7]} 8. exd5 {[%clk
0:02:44.9]} 8... Nb8 {[%clk 0:03:00.4]} 9. a4 {[%clk 0:02:42.8]} 9... Be7 {[%clk
0:03:00.3]} 10. Bd2 {[%clk 0:02:41.6]} 10... O-O {[%clk 0:02:58.1]} 11. a5
{[%clk 0:02:41.7]} 11... Nd7 {[%clk 0:02:45.2]} 12. c4 {[%clk 0:02:37]} 12... f5
{[%clk 0:02:37.9]} 13. Be2 {[%clk 0:02:36.2]} 13... a6 {[%clk 0:02:27.7]} 14.
Nc3 {[%clk 0:02:35.6]} 14... e4 {[%clk 0:02:22.5]} 15. O-O {[%clk 0:02:30.2]}
15... Bf6 {[%clk 0:02:21]} 16. f4 {[%clk 0:02:26.4]} 16... b6 {[%clk 0:02:14.6]}
17. Kh1 {[%clk 0:02:17.4]} 17... bxa5 {[%clk 0:02:13.6]} 18. Be3 {[%clk
0:02:03.2]} 18... Rb8 {[%clk 0:02:11.5]} 19. Ra2 {[%clk 0:01:52.6]} 19... Qc7
{[%clk 0:02:10.4]} 20. Bd4 {[%clk 0:01:49]} 20... Bxd4 {[%clk 0:02:08.4]} 21.
Qxd4 {[%clk 0:01:49.9]} 21... Rb4 {[%clk 0:01:57.2]} 22. Na4 {[%clk 0:01:07.3]}
22... Nf6 {[%clk 0:01:41.4]} 23. Rc1 {[%clk 0:00:52.5]} 23... Bd7 {[%clk
0:01:41]} 24. Nc3 {[%clk 0:00:48.5]} 24... Rfb8 {[%clk 0:01:38.8]} 25. Rca1
{[%clk 0:00:43.5]} 25... Rxb2 {[%clk 0:01:20.2]} 26. Rxb2 {[%clk 0:00:42.6]}
26... Rxb2 {[%clk 0:01:19.8]} 27. Nb5 {[%clk 0:00:42.1]} 27... axb5 {[%clk
0:01:09.9]} 28. Qxb2 {[%clk 0:00:42]} 28... bxc4 {[%clk 0:01:10.1]} 29. Qc3
{[%clk 0:00:37.7]} 29... Nxd5 {[%clk 0:01:07.6]} 30. Qxc4 {[%clk 0:00:38]} 30...
Qb7 {[%clk 0:00:55.8]} 31. h3 {[%clk 0:00:20.9]} 31... Be6 {[%clk 0:00:54.4]}
32. Rxa5 {[%clk 0:00:17.5]} 32... Nxf4 {[%clk 0:00:48.3]} 33. Qa4 {[%clk
0:00:17.6]} 33... h6 {[%clk 0:00:40.5]} 34. Bh5 {[%clk 0:00:03.3]} 34... Qb2
{[%clk 0:00:29.2]} 35. Qe8+ {[%clk 0:00:01.5]} 35... Kh7 {[%clk 0:00:29.1]} 0-1

[Event "*** Titled Tuesday Blitz"]
[Site "Chess.com"]
[Date "2021.02.16"]
[Round "6"]
[White "KuzubovYuriy"]
[Black "Chopper1905"]
[Result "0-1"]
[WhiteElo "2834"]
[BlackElo "2948"]
[TimeControl "180+1"]
[EndTime "11:08:05 PST"]
[Termination "Chopper1905 won on time"]

1. d4 {[%clk 0:03:00.9]} 1... Nf6 {[%clk 0:03:00]} 2. Nf3 {[%clk 0:03:01.4]}
2... d5 {[%clk 0:03:00]} 3. c4 {[%clk 0:03:01.1]} 3... e6 {[%clk 0:03:00.1]} 4.
g3 {[%clk 0:03:01.1]} 4... dxc4 {[%clk 0:02:57.1]} 5. Bg2 {[%clk 0:03:00.7]}
5... c5 {[%clk 0:02:57.7]} 6. O-O {[%clk 0:03:00.6]} 6... Nc6 {[%clk 0:02:58.1]}
7. dxc5 {[%clk 0:03:00.4]} 7... Qxd1 {[%clk 0:02:59]} 8. Rxd1 {[%clk 0:03:01]}
8... Bxc5 {[%clk 0:02:59.9]} 9. Nbd2 {[%clk 0:03:00.4]} 9... c3 {[%clk
0:03:00.2]} 10. bxc3 {[%clk 0:03:01.3]} 10... O-O {[%clk 0:03:00.5]} 11. Ne1
{[%clk 0:03:01.9]} 11... Be7 {[%clk 0:02:37.3]} 12. Nd3 {[%clk 0:02:59.4]} 12...
Bd7 {[%clk 0:02:36.6]} 13. Nb3 {[%clk 0:02:49.8]} 13... b6 {[%clk 0:02:34.3]}
14. Bg5 {[%clk 0:02:43.2]} 14... Rac8 {[%clk 0:02:31.3]} 15. c4 {[%clk
0:02:25.3]} 15... h6 {[%clk 0:02:28.7]} 16. Bf4 {[%clk 0:02:18.2]} 16... Nb4
{[%clk 0:02:14]} 17. Be5 {[%clk 0:01:21.1]} 17... Ba4 {[%clk 0:01:53]} 18. Nb2
{[%clk 0:01:17.6]} 18... Bc6 {[%clk 0:01:46.8]} 19. a4 {[%clk 0:00:55.7]} 19...
Ne4 {[%clk 0:00:37.2]} 20. a5 {[%clk 0:00:40.5]} 20... f6 {[%clk 0:00:36.4]} 21.
Bd4 {[%clk 0:00:33.5]} 21... e5 {[%clk 0:00:34.9]} 22. axb6 {[%clk 0:00:20.5]}
22... Nc2 {[%clk 0:00:25]} 23. Rxa7 {[%clk 0:00:18.9]} 23... Bd8 {[%clk
0:00:18.6]} 24. b7 {[%clk 0:00:13.8]} 24... Rb8 {[%clk 0:00:19]} 25. Be3 {[%clk
0:00:08.9]} 25... Nxe3 {[%clk 0:00:18.8]} 26. fxe3 {[%clk 0:00:08.8]} 26... Bb6
{[%clk 0:00:19.2]} 27. Ra6 {[%clk 0:00:06.5]} 27... Bxe3+ {[%clk 0:00:18.2]} 28.
Kf1 {[%clk 0:00:07.1]} 28... Bxb7 {[%clk 0:00:18.6]} 29. Re6 {[%clk 0:00:05.5]}
29... Ba8 {[%clk 0:00:16.2]} 30. Rd3 {[%clk 0:00:02.4]} 30... Rxb3 {[%clk
0:00:16.4]} 0-1

[Event "*** Titled Tuesday Blitz"]
[Site "Chess.com"]
[Date "2021.02.16"]
[Round "6"]
[White "ErikBlomqvist"]
[Black "Gabrielian_Artur"]
[Result "0-1"]
[WhiteElo "2522"]
[BlackElo "2802"]
[TimeControl "180+1"]
[EndTime "11:08:05 PST"]
[Termination "Gabrielian_Artur won by checkmate"]

1. e4 {[%clk 0:03:00.9]} 1... e5 {[%clk 0:02:57.4]} 2. Bc4 {[%clk 0:02:59.4]}
2... Nf6 {[%clk 0:02:55.9]} 3. d3 {[%clk 0:02:59.6]} 3... Nc6 {[%clk 0:02:55.4]}
4. a3 {[%clk 0:02:59.7]} 4... h6 {[%clk 0:02:37.1]} 5. Nc3 {[%clk 0:02:59]} 5...
g6 {[%clk 0:02:30.9]} 6. f4 {[%clk 0:02:53.1]} 6... Bg7 {[%clk 0:02:30.1]} 7.
Nf3 {[%clk 0:02:52.2]} 7... d6 {[%clk 0:02:28.6]} 8. O-O {[%clk 0:02:47.9]} 8...
Bg4 {[%clk 0:02:23.6]} 9. h3 {[%clk 0:02:26.2]} 9... Bxf3 {[%clk 0:02:23]} 10.
Qxf3 {[%clk 0:02:27.1]} 10... Qe7 {[%clk 0:02:21]} 11. Be3 {[%clk 0:02:10.9]}
11... exf4 {[%clk 0:02:14.7]} 12. Qxf4 {[%clk 0:02:06.6]} 12... O-O-O {[%clk
0:02:11.1]} 13. Qf2 {[%clk 0:01:26.9]} 13... a6 {[%clk 0:01:37.7]} 14. Nd5
{[%clk 0:01:16.9]} 14... Nxd5 {[%clk 0:01:37.2]} 15. Bxd5 {[%clk 0:01:17.8]}
15... Rhf8 {[%clk 0:01:35.5]} 16. Bxc6 {[%clk 0:01:13.1]} 16... bxc6 {[%clk
0:01:35.4]} 17. Bd4 {[%clk 0:01:10.3]} 17... f5 {[%clk 0:01:32.4]} 18. Bxg7
{[%clk 0:00:50]} 18... Qxg7 {[%clk 0:01:32]} 19. Qa7 {[%clk 0:00:40.7]} 19...
fxe4 {[%clk 0:01:24.6]} 20. dxe4 {[%clk 0:00:40.3]} 20... Kd7 {[%clk 0:01:04.4]}
21. c3 {[%clk 0:00:36.9]} 21... Qe5 {[%clk 0:01:00.2]} 22. Qxa6 {[%clk
0:00:23.3]} 22... Qxe4 {[%clk 0:00:51.1]} 23. Rae1 {[%clk 0:00:22.9]} 23... Qd5
{[%clk 0:00:45.8]} 24. Qe2 {[%clk 0:00:19.1]} 24... Rxf1+ {[%clk 0:00:28.6]} 25.
Rxf1 {[%clk 0:00:20]} 25... Qe6 {[%clk 0:00:28]} 26. Qd2 {[%clk 0:00:17.7]}
26... Rb8 {[%clk 0:00:19.2]} 27. b4 {[%clk 0:00:15.1]} 27... g5 {[%clk
0:00:18.3]} 28. a4 {[%clk 0:00:15.1]} 28... Re8 {[%clk 0:00:17.5]} 29. Kh1
{[%clk 0:00:05]} 29... Qc4 {[%clk 0:00:16.5]} 30. Rf3 {[%clk 0:00:03.1]} 30...
Re2 {[%clk 0:00:15.5]} 31. Qc1 {[%clk 0:00:02.3]} 31... Qe4 {[%clk 0:00:15.4]}
32. Rf1 {[%clk 0:00:02.1]} 32... Qxg2# {[%clk 0:00:15.4]} 0-1

[Event "*** Titled Tuesday Blitz"]
[Site "Chess.com"]
[Date "2021.02.16"]
[Round "6"]
[White "Grandelicious"]
[Black "jacky72"]
[Result "1-0"]
[WhiteElo "2891"]
[BlackElo "2697"]
[TimeControl "180+1"]
[EndTime "11:08:06 PST"]
[Termination "Grandelicious won by resignation"]

1. Nf3 {[%clk 0:03:00.9]} 1... Nf6 {[%clk 0:02:59.5]} 2. g3 {[%clk 0:03:01.2]}
2... g6 {[%clk 0:02:59.6]} 3. Bg2 {[%clk 0:03:01.9]} 3... Bg7 {[%clk 0:03:00.5]}
4. b3 {[%clk 0:03:02.7]} 4... O-O {[%clk 0:03:01.4]} 5. Bb2 {[%clk 0:03:03.2]}
5... d6 {[%clk 0:03:02.3]} 6. O-O {[%clk 0:03:02.9]} 6... e5 {[%clk 0:02:58.9]}
7. c4 {[%clk 0:03:03.5]} 7... Nc6 {[%clk 0:02:58.8]} 8. Nc3 {[%clk 0:03:03.2]}
8... h6 {[%clk 0:02:56.1]} 9. d3 {[%clk 0:03:03.5]} 9... Be6 {[%clk 0:02:55.5]}
10. h3 {[%clk 0:03:00.3]} 10... Qd7 {[%clk 0:02:46.9]} 11. Kh2 {[%clk
0:03:00.5]} 11... Nh7 {[%clk 0:02:42.6]} 12. Nd5 {[%clk 0:03:00.3]} 12... Ne7
{[%clk 0:02:38.9]} 13. Nxe7+ {[%clk 0:02:51.4]} 13... Qxe7 {[%clk 0:02:39.8]}
14. b4 {[%clk 0:02:42.9]} 14... f5 {[%clk 0:02:38.7]} 15. Nd2 {[%clk 0:02:41.9]}
15... c6 {[%clk 0:02:37.3]} 16. b5 {[%clk 0:02:41.3]} 16... d5 {[%clk
0:02:09.5]} 17. Qa4 {[%clk 0:02:36.1]} 17... Rfc8 {[%clk 0:02:03.9]} 18. bxc6
{[%clk 0:02:31.7]} 18... bxc6 {[%clk 0:02:03.9]} 19. Ba3 {[%clk 0:02:25.2]}
19... Qf7 {[%clk 0:01:59.5]} 20. Rab1 {[%clk 0:02:23.1]} 20... e4 {[%clk
0:01:55.4]} 21. Qa6 {[%clk 0:02:12.6]} 21... Bc3 {[%clk 0:01:43.5]} 22. Rb7
{[%clk 0:02:08.9]} 22... Rc7 {[%clk 0:01:39.6]} 23. Rxc7 {[%clk 0:02:09.2]}
23... Qxc7 {[%clk 0:01:40.5]} 24. cxd5 {[%clk 0:02:06.7]} 24... Bxd5 {[%clk
0:01:37.9]} 25. dxe4 {[%clk 0:02:07.1]} 25... Bxa2 {[%clk 0:01:29.5]} 26. Bb2
{[%clk 0:02:01.6]} 26... Bxd2 {[%clk 0:01:18.1]} 27. Qxa2+ {[%clk 0:02:00.6]}
27... Qf7 {[%clk 0:01:18.6]} 28. Qxf7+ {[%clk 0:01:56.3]} 28... Kxf7 {[%clk
0:01:19.5]} 29. exf5 {[%clk 0:01:57.2]} 29... gxf5 {[%clk 0:01:16.3]} 30. Rd1
{[%clk 0:01:54.9]} 30... Rd8 {[%clk 0:01:06.9]} 31. Bxc6 {[%clk 0:01:45.1]}
31... Ba5 {[%clk 0:01:03.4]} 32. Rxd8 {[%clk 0:01:40]} 32... Bxd8 {[%clk
0:01:04.3]} 33. g4 {[%clk 0:01:26.4]} 33... fxg4 {[%clk 0:00:54]} 34. hxg4
{[%clk 0:01:27.3]} 34... Nf6 {[%clk 0:00:54.6]} 35. Kg3 {[%clk 0:01:23.9]} 35...
a5 {[%clk 0:00:33.5]} 36. f4 {[%clk 0:01:23.3]} 36... Bb6 {[%clk 0:00:25]} 37.
Kf3 {[%clk 0:01:20.6]} 37... Bc5 {[%clk 0:00:16.3]} 38. e4 {[%clk 0:01:20.7]}
38... Ne8 {[%clk 0:00:14.9]} 39. e5 {[%clk 0:01:20]} 39... Nc7 {[%clk
0:00:13.2]} 40. f5 {[%clk 0:01:17.4]} 40... Bb4 {[%clk 0:00:11.9]} 41. Ke4
{[%clk 0:01:16.6]} 41... Bd2 {[%clk 0:00:11]} 42. Bd4 {[%clk 0:01:12.2]} 42...
Bb4 {[%clk 0:00:07.6]} 43. Bb6 {[%clk 0:01:12.3]} 43... Na6 {[%clk 0:00:04.5]}
44. Kd5 {[%clk 0:01:06.1]} 44... Bd2 {[%clk 0:00:04.3]} 45. Bb5 {[%clk
0:00:58.8]} 45... Nb4+ {[%clk 0:00:04.3]} 46. Ke4 {[%clk 0:00:59.2]} 46... Na2
{[%clk 0:00:02.6]} 47. Bc4+ {[%clk 0:00:59.2]} 47... Ke7 {[%clk 0:00:01.8]} 48.
Bxa2 {[%clk 0:00:58.6]} 48... Be1 {[%clk 0:00:02.7]} 49. f6+ {[%clk 0:00:58.5]}
49... Kf8 {[%clk 0:00:03.1]} 50. Bc5+ {[%clk 0:00:58.5]} 1-0